{"text_format":"3","workbook":"xlsx","n_sheets":2,"sheets":["Проследяване на проекти","Настройка"],"not_rendered":{"defined_names":6},"read":"whole","date_system":"1900"}

{"sheet":"Проследяване на проекти","index":0,"n_rows":13,"n_cols":15,"rows_kept":13}
[null,"Проследяване на проекти"]
[null,null,"Процент над/под за флага: ",{"v":0.25,"d":"25%"}]
[]
[null,"Проект","Категория","Възложен на","Очаквано\nзапочване","Очаквано \nзавършване","Очаквана работа (в часове)","Очаквана продължителност (в дни)","Действително \nзапочване","Действително\nзавършване","Икона на флаг за над/под действителната работа (в часове)","Действителна работа (в часове)","Икона на флаг за над/под действителната работа (в дни)","Действителна продължителност (в дни)","Бележки"]
[null,"Проект 1","Категория 1","Служител 1",{"$f":"TODAY()-65","v":"2016-10-03"},{"$f":"TODAY()-5","v":"2016-12-02"},210,{"$f":"IF(COUNTA('Проследяване на проекти'!$E5,'Проследяване на проекти'!$F5)<>2,\"\",DAYS360('Проследяване на проекти'!$E5,'Проследяване на проекти'!$F5,FALSE))","v":59},{"$f":"TODAY()-65","v":"2016-10-03"},{"$f":"TODAY()","v":"2016-12-07"},{"$f":"IFERROR(IF(ПроследванеПроект[Действителна работа (в часове)]=0,\"\",IF(ABS((ПроследванеПроект[[#This Row],[Действителна работа (в часове)]]-ПроследванеПроект[[#This Row],[Очаквана работа (в часове)]])/ПроследванеПроект[[#This Row],[Очаквана работа (в часове)]])>ФлагПроцент,1,0)),\"\")","v":1},300,{"$f":"IFERROR(IF(ПроследванеПроект[Действителна продължителност (в дни)]=0,\"\",IF(ABS((ПроследванеПроект[[#This Row],[Действителна продължителност (в дни)]]-ПроследванеПроект[[#This Row],[Очаквана продължителност (в дни)]])/ПроследванеПроект[[#This Row],[Очаквана продължителност (в дни)]])>ФлагПроцент,1,0)),\"\")","v":0},{"$f":"IF(COUNTA('Проследяване на проекти'!$I5,'Проследяване на проекти'!$J5)<>2,\"\",DAYS360('Проследяване на проекти'!$I5,'Проследяване на проекти'!$J5,FALSE))","v":64}]
[null,"Проект 2","Категория 2","Служител 4",{"$f":"TODAY()-41","v":"2016-10-27"},{"$f":"TODAY()-10","v":"2016-11-27"},400,{"$f":"IF(COUNTA('Проследяване на проекти'!$E6,'Проследяване на проекти'!$F6)<>2,\"\",DAYS360('Проследяване на проекти'!$E6,'Проследяване на проекти'!$F6,FALSE))","v":30},{"$f":"TODAY()-41","v":"2016-10-27"},{"$f":"TODAY()-7","v":"2016-11-30"},{"$f":"IFERROR(IF(ПроследванеПроект[Действителна работа (в часове)]=0,\"\",IF(ABS((ПроследванеПроект[[#This Row],[Действителна работа (в часове)]]-ПроследванеПроект[[#This Row],[Очаквана работа (в часове)]])/ПроследванеПроект[[#This Row],[Очаквана работа (в часове)]])>ФлагПроцент,1,0)),\"\")","v":0},390,{"$f":"IFERROR(IF(ПроследванеПроект[Действителна продължителност (в дни)]=0,\"\",IF(ABS((ПроследванеПроект[[#This Row],[Действителна продължителност (в дни)]]-ПроследванеПроект[[#This Row],[Очаквана продължителност (в дни)]])/ПроследванеПроект[[#This Row],[Очаквана продължителност (в дни)]])>ФлагПроцент,1,0)),\"\")","v":0},{"$f":"IF(COUNTA('Проследяване на проекти'!$I6,'Проследяване на проекти'!$J6)<>2,\"\",DAYS360('Проследяване на проекти'!$I6,'Проследяване на проекти'!$J6,FALSE))","v":33}]
[null,"Проект 3","Категория 1","Служител 2",{"$f":"TODAY()-100","v":"2016-08-29"},{"$f":"TODAY()-40","v":"2016-10-28"},500,{"$f":"IF(COUNTA('Проследяване на проекти'!$E7,'Проследяване на проекти'!$F7)<>2,\"\",DAYS360('Проследяване на проекти'!$E7,'Проследяване на проекти'!$F7,FALSE))","v":59},{"$f":"TODAY()-100","v":"2016-08-29"},{"$f":"TODAY()-27","v":"2016-11-10"},{"$f":"IFERROR(IF(ПроследванеПроект[Действителна работа (в часове)]=0,\"\",IF(ABS((ПроследванеПроект[[#This Row],[Действителна работа (в часове)]]-ПроследванеПроект[[#This Row],[Очаквана работа (в часове)]])/ПроследванеПроект[[#This Row],[Очаквана работа (в часове)]])>ФлагПроцент,1,0)),\"\")","v":0},500,{"$f":"IFERROR(IF(ПроследванеПроект[Действителна продължителност (в дни)]=0,\"\",IF(ABS((ПроследванеПроект[[#This Row],[Действителна продължителност (в дни)]]-ПроследванеПроект[[#This Row],[Очаквана продължителност (в дни)]])/ПроследванеПроект[[#This Row],[Очаквана продължителност (в дни)]])>ФлагПроцент,1,0)),\"\")","v":0},{"$f":"IF(COUNTA('Проследяване на проекти'!$I7,'Проследяване на проекти'!$J7)<>2,\"\",DAYS360('Проследяване на проекти'!$I7,'Проследяване на проекти'!$J7,FALSE))","v":71}]
[null,"Проект 4","Категория 2","Служител 3",{"$f":"TODAY()-90","v":"2016-09-08"},{"$f":"TODAY()-80","v":"2016-09-18"},250,{"$f":"IF(COUNTA('Проследяване на проекти'!$E8,'Проследяване на проекти'!$F8)<>2,\"\",DAYS360('Проследяване на проекти'!$E8,'Проследяване на проекти'!$F8,FALSE))","v":10},{"$f":"TODAY()-90","v":"2016-09-08"},{"$f":"TODAY()-71","v":"2016-09-27"},{"$f":"IFERROR(IF(ПроследванеПроект[Действителна работа (в часове)]=0,\"\",IF(ABS((ПроследванеПроект[[#This Row],[Действителна работа (в часове)]]-ПроследванеПроект[[#This Row],[Очаквана работа (в часове)]])/ПроследванеПроект[[#This Row],[Очаквана работа (в часове)]])>ФлагПроцент,1,0)),\"\")","v":0},276,{"$f":"IFERROR(IF(ПроследванеПроект[Действителна продължителност (в дни)]=0,\"\",IF(ABS((ПроследванеПроект[[#This Row],[Действителна продължителност (в дни)]]-ПроследванеПроект[[#This Row],[Очаквана продължителност (в дни)]])/ПроследванеПроект[[#This Row],[Очаквана продължителност (в дни)]])>ФлагПроцент,1,0)),\"\")","v":1},{"$f":"IF(COUNTA('Проследяване на проекти'!$I8,'Проследяване на проекти'!$J8)<>2,\"\",DAYS360('Проследяване на проекти'!$I8,'Проследяване на проекти'!$J8,FALSE))","v":19}]
[null,"Проект 5","Категория 3","Служител 2",{"$f":"TODAY()-90","v":"2016-09-08"},{"$f":"TODAY()-50","v":"2016-10-18"},300,{"$f":"IF(COUNTA('Проследяване на проекти'!$E9,'Проследяване на проекти'!$F9)<>2,\"\",DAYS360('Проследяване на проекти'!$E9,'Проследяване на проекти'!$F9,FALSE))","v":40},{"$f":"TODAY()-90","v":"2016-09-08"},{"$f":"TODAY()-44","v":"2016-10-24"},{"$f":"IFERROR(IF(ПроследванеПроект[Действителна работа (в часове)]=0,\"\",IF(ABS((ПроследванеПроект[[#This Row],[Действителна работа (в часове)]]-ПроследванеПроект[[#This Row],[Очаквана работа (в часове)]])/ПроследванеПроект[[#This Row],[Очаквана работа (в часове)]])>ФлагПроцент,1,0)),\"\")","v":0},310,{"$f":"IFERROR(IF(ПроследванеПроект[Действителна продължителност (в дни)]=0,\"\",IF(ABS((ПроследванеПроект[[#This Row],[Действителна продължителност (в дни)]]-ПроследванеПроект[[#This Row],[Очаквана продължителност (в дни)]])/ПроследванеПроект[[#This Row],[Очаквана продължителност (в дни)]])>ФлагПроцент,1,0)),\"\")","v":0},{"$f":"IF(COUNTA('Проследяване на проекти'!$I9,'Проследяване на проекти'!$J9)<>2,\"\",DAYS360('Проследяване на проекти'!$I9,'Проследяване на проекти'!$J9,FALSE))","v":46}]
[null,"Проект 6","Категория 4","Служител 4",{"$f":"TODAY()-60","v":"2016-10-08"},{"$f":"TODAY()-50","v":"2016-10-18"},500,{"$f":"IF(COUNTA('Проследяване на проекти'!$E10,'Проследяване на проекти'!$F10)<>2,\"\",DAYS360('Проследяване на проекти'!$E10,'Проследяване на проекти'!$F10,FALSE))","v":10},{"$f":"TODAY()-60","v":"2016-10-08"},{"$f":"TODAY()-45","v":"2016-10-23"},{"$f":"IFERROR(IF(ПроследванеПроект[Действителна работа (в часове)]=0,\"\",IF(ABS((ПроследванеПроект[[#This Row],[Действителна работа (в часове)]]-ПроследванеПроект[[#This Row],[Очаквана работа (в часове)]])/ПроследванеПроект[[#This Row],[Очаквана работа (в часове)]])>ФлагПроцент,1,0)),\"\")","v":0},510,{"$f":"IFERROR(IF(ПроследванеПроект[Действителна продължителност (в дни)]=0,\"\",IF(ABS((ПроследванеПроект[[#This Row],[Действителна продължителност (в дни)]]-ПроследванеПроект[[#This Row],[Очаквана продължителност (в дни)]])/ПроследванеПроект[[#This Row],[Очаквана продължителност (в дни)]])>ФлагПроцент,1,0)),\"\")","v":1},{"$f":"IF(COUNTA('Проследяване на проекти'!$I10,'Проследяване на проекти'!$J10)<>2,\"\",DAYS360('Проследяване на проекти'!$I10,'Проследяване на проекти'!$J10,FALSE))","v":15}]
[null,"Проект 7","Категория 5","Служител 1",{"$f":"TODAY()-44","v":"2016-10-24"},{"$f":"TODAY()-20","v":"2016-11-17"},750,{"$f":"IF(COUNTA('Проследяване на проекти'!$E11,'Проследяване на проекти'!$F11)<>2,\"\",DAYS360('Проследяване на проекти'!$E11,'Проследяване на проекти'!$F11,FALSE))","v":23},{"$f":"TODAY()-44","v":"2016-10-24"},{"$f":"TODAY()-15","v":"2016-11-22"},{"$f":"IFERROR(IF(ПроследванеПроект[Действителна работа (в часове)]=0,\"\",IF(ABS((ПроследванеПроект[[#This Row],[Действителна работа (в часове)]]-ПроследванеПроект[[#This Row],[Очаквана работа (в часове)]])/ПроследванеПроект[[#This Row],[Очаквана работа (в часове)]])>ФлагПроцент,1,0)),\"\")","v":0},790,{"$f":"IFERROR(IF(ПроследванеПроект[Действителна продължителност (в дни)]=0,\"\",IF(ABS((ПроследванеПроект[[#This Row],[Действителна продължителност (в дни)]]-ПроследванеПроект[[#This Row],[Очаквана продължителност (в дни)]])/ПроследванеПроект[[#This Row],[Очаквана продължителност (в дни)]])>ФлагПроцент,1,0)),\"\")","v":0},{"$f":"IF(COUNTA('Проследяване на проекти'!$I11,'Проследяване на проекти'!$J11)<>2,\"\",DAYS360('Проследяване на проекти'!$I11,'Проследяване на проекти'!$J11,FALSE))","v":28}]
[null,"Проект 8","Категория 2","Служител 1",{"$f":"TODAY()-39","v":"2016-10-29"},{"$f":"TODAY()","v":"2016-12-07"},450,{"$f":"IF(COUNTA('Проследяване на проекти'!$E12,'Проследяване на проекти'!$F12)<>2,\"\",DAYS360('Проследяване на проекти'!$E12,'Проследяване на проекти'!$F12,FALSE))","v":38},{"$f":"TODAY()-45","v":"2016-10-23"},{"$f":"TODAY()-5","v":"2016-12-02"},{"$f":"IFERROR(IF(ПроследванеПроект[Действителна работа (в часове)]=0,\"\",IF(ABS((ПроследванеПроект[[#This Row],[Действителна работа (в часове)]]-ПроследванеПроект[[#This Row],[Очаквана работа (в часове)]])/ПроследванеПроект[[#This Row],[Очаквана работа (в часове)]])>ФлагПроцент,1,0)),\"\")","v":0},430,{"$f":"IFERROR(IF(ПроследванеПроект[Действителна продължителност (в дни)]=0,\"\",IF(ABS((ПроследванеПроект[[#This Row],[Действителна продължителност (в дни)]]-ПроследванеПроект[[#This Row],[Очаквана продължителност (в дни)]])/ПроследванеПроект[[#This Row],[Очаквана продължителност (в дни)]])>ФлагПроцент,1,0)),\"\")","v":0},{"$f":"IF(COUNTA('Проследяване на проекти'!$I12,'Проследяване на проекти'!$J12)<>2,\"\",DAYS360('Проследяване на проекти'!$I12,'Проследяване на проекти'!$J12,FALSE))","v":39}]
[null,"Проект 9","Категория 4","Служител 1","2016-02-05","2016-06-09",250,{"$f":"IF(COUNTA('Проследяване на проекти'!$E13,'Проследяване на проекти'!$F13)<>2,\"\",DAYS360('Проследяване на проекти'!$E13,'Проследяване на проекти'!$F13,FALSE))","v":124},"2016-03-05","2016-05-05",{"$f":"IFERROR(IF(ПроследванеПроект[Действителна работа (в часове)]=0,\"\",IF(ABS((ПроследванеПроект[[#This Row],[Действителна работа (в часове)]]-ПроследванеПроект[[#This Row],[Очаквана работа (в часове)]])/ПроследванеПроект[[#This Row],[Очаквана работа (в часове)]])>ФлагПроцент,1,0)),\"\")","v":0},200,{"$f":"IFERROR(IF(ПроследванеПроект[Действителна продължителност (в дни)]=0,\"\",IF(ABS((ПроследванеПроект[[#This Row],[Действителна продължителност (в дни)]]-ПроследванеПроект[[#This Row],[Очаквана продължителност (в дни)]])/ПроследванеПроект[[#This Row],[Очаквана продължителност (в дни)]])>ФлагПроцент,1,0)),\"\")","v":1},{"$f":"IF(COUNTA('Проследяване на проекти'!$I13,'Проследяване на проекти'!$J13)<>2,\"\",DAYS360('Проследяване на проекти'!$I13,'Проследяване на проекти'!$J13,FALSE))","v":60}]

{"sheet":"Настройка","index":1,"n_rows":10,"n_cols":3,"rows_kept":10}
[null,"Настройка"]
[]
[]
[null,"Име на категория","Име на служител"]
[null,"Категория 1","Служител 1"]
[null,"Категория 2","Служител 2"]
[null,"Категория 3","Служител 3"]
[null,"Категория 4","Служител 4"]
[null,"Категория 5","Служител 5"]
[null,"Категория 6","Служител 6"]